Workbook

Sheet ArtResourcesConfig
B1: Id | C1: Name | D1: Desc | E1: Info | F1: Scale | G1: Position
B2: int | C2: string | D2: string | E2: string | F2: float | G2: mut,float#float,1
B3: 2 | C3: 3 | D3: 3 | E3: 0 | F3: 3 | G3: 3
B4: id | C4: 资源名称 | D4: 游戏内名字 | E4: 详细 | F4: 角色缩放值 | G4: 位置
A5: 默认值 | B5: 0 | C5: ="" ->  | D5: ="" ->  | E5: ="" ->  | F5: 0 | G5: null
A6: 正确性校对
A7: 校对值
B8: 1 | C8: MP_ExploreMap_sj_0010 | D8: 怪 | E8: 怪
B9: 2 | C9: MP_ExploreMap_sj_0011 | D9: 精英怪 | E9: 精英怪
B10: 3 | C10: ME_Explorer_0004 | D10: 矿 | E10: 矿
B11: 4 | C11: ME_Explorer_0001 | D11: 出生点 | E11: 出生点
B12: 5 | C12: ME_Explorer_0007 | D12: 出口 | E12: 出口
B13: 6 | C13: ME_Explorer_0002 | D13: 探索点 | E13: 探索点
B14: 7 | C14: ME_Explorer_0005 | D14: npc | E14: npc
B15: 8 | D15: 商人 | E15: 商人
B16: 9 | D16: 宝箱 | E16: 宝箱
B17: 10 | C17: ME_Explorer_0002 | D17: 驿馆头像 | E17: 驿馆头像
B18: 101 | C18: s_shangcheng_hunjing_01 | D18: 60妖精
B19: 102 | C19: s_shangcheng_hunjing_02 | D19: 300妖精
B20: 103 | C20: s_shangcheng_hunjing_03 | D20: 980妖精
B21: 104 | C21: s_shangcheng_hunjing_04 | D21: 1980妖精
B22: 105 | C22: s_shangcheng_hunjing_05 | D22: 3280妖精
B23: 106 | C23: s_shangcheng_hunjing_06 | D23: 6480妖精
B24: 201 | C24: r_playerrumble_yiyao_01 | D24: 蒸笼仔 | E24: 长条立绘
B25: 202 | C25: r_playerrumble_yiyao_02 | D25: 拘魂姬 | E25: 长条立绘
B26: 203 | C26: r_playerrumble_yiyao_03 | D26: 横公 | E26: 长条立绘
B27: 204 | C27: r_playerrumble_yiyao_04 | D27: 孙龙 | E27: 长条立绘
B28: 205 | C28: r_playerrumble_yiyao_05 | D28: 风狸 | E28: 长条立绘
B29: 206 | C29: r_playerrumble_yiyao_06 | D29: 刀捞鬼 | E29: 长条立绘
B30: 207 | C30: r_playerrumble_yiyao_07 | D30: 火鼠 | E30: 长条立绘
B31: 208 | C31: r_playerrumble_yiyao_08 | D31: 陌刀 | E31: 长条立绘
B32: 209 | C32: r_playerrumble_yiyao_09 | D32: 天麟 | E32: 长条立绘
B33: 210 | C33: r_playerrumble_yiyao_10 | D33: 拦面叟 | E33: 长条立绘
B34: 301 | C34: gh_tt_1 | D34: 公会图腾
B35: 302 | C35: gh_tt_2 | D35: 公会图腾
B36: 303 | C36: gh_tt_3 | D36: 公会图腾
B37: 304 | C37: gh_tt_4 | D37: 公会图腾
B38: 305 | C38: gh_tt_5 | D38: 公会图腾
B39: 306 | C39: gh_tt_6 | D39: 公会图腾
B40: 307 | C40: gh_tt_7 | D40: 公会图腾
B41: 308 | C41: gh_tt_8 | D41: 公会图腾
B42: 309 | C42: gh_tt_9 | D42: 公会图腾
B43: 501 | C43: s_sbtj_renwu | D43: 神兵天降 | E43: 拍脸图
B44: 502 | C44: s_sbtj_biaoti | D44: 神兵天降文字 | E44: 拍脸图
B45: 503 | C45: t_tsec_fengli | D45: 限时直购风狸 | E45: 拍脸图
B46: 504 | C46: t_tsec_huoshu | D46: 限时直购火鼠 | E46: 拍脸图
B47: 505 | C47: t_tsec_modao | D47: 限时直购陌刀 | E47: 拍脸图
B48: 506 | C48: t_tsec_sunlong | D48: 限时直购孙龙 | E48: 拍脸图
B49: 507 | C49: t_tsec_biaoti | D49: 天神恩赐文字 | E49: 拍脸图
B50: 1001 | C50: c_fx_00028_t3 | D50: 伏羲 | E50: 角色id为1静态立绘
B51: 1002 | C51: c_ls_0004_t3 | D51: 洛神 | E51: 角色id为2静态立绘
B52: 1003 | C52: c_jbj_0007_t3 | D52: 猪八戒 | E52: 角色id为3静态立绘
B53: 1004 | C53: c_chdr_00030_t3 | D53: 慈航道人 | E53: 角色id为4静态立绘
B54: 1005 | C54: c_dj_0008_t3 | D54: 妲己 | E54: 角色id为5静态立绘
B55: 1006 | C55: c_gg_0005_t3 | D55: 共工 | E55: 角色id为6静态立绘
B56: 1007 | C56: c_ts_00017_t3 | D56: 唐僧 | E56: 角色id为7静态立绘
B57: 1008 | C57: c_jw_0003_t3 | D57: 精卫 | E57: 角色id为8静态立绘
B58: 1009 | C58: c_ljgz_00032_t3_png | D58: 龙吉公主 | E58: 角色id为9静态立绘
B59: 1010 | C59: c_kqmw_00018_t3 | D59: 孔雀明王 | E59: 角色id为10静态立绘
B60: 1011 | C60: c_lzz_0002_t3 | D60: 雷震子 | E60: 角色id为11静态立绘
B61: 1012 | C61: c_xllh_00022_t3 | D61: 降龙罗汉 | E61: 角色id为12静态立绘
B62: 1013 | C62: c_ldb_00047_t3 | D62: 吕洞宾 | E62: 角色id为13静态立绘
B63: 1014 | C63: c_nz_00029_t3 | D63: 哪吒 | E63: 角色id为14静态立绘
B64: 1015 | C64: c_fhlh_00021_t3 | D64: 伏虎罗汉 | E64: 角色id为15静态立绘
B65: 1016 | C65: c_cy_00031_t3 | D65: 蚩尤 | E65: 角色id为16静态立绘
B66: 1017 | C66: c_ce_00034_t3 | D66: 嫦娥 | E66: 角色id为17静态立绘
B67: 1018 | C67: c_jmm_0006_t3 | D67: 九命猫 | E67: 角色id为18静态立绘
B68: 1019 | C68: c_jls_00044_t3_png | D68: 巨灵神 | E68: 角色id为19静态立绘
B69: 1020 | C69: c_ghn_0009_t3 | D69: 姑获鸟 | E69: 角色id为20静态立绘
B70: 1021 | C70: c_dlsm_00033_t3_png | D70: 东陵圣母 | E70: 角色id为21静态立绘
B71: 1022 | C71: c_wsps_00016_t3 | D71: 达摩 | E71: 角色id为22静态立绘
B72: 1023 | C72: c_swk_00015_t3_png | D72: 孙悟空 | E72: 角色id为23静态立绘
B73: 1024 | C73: c_jzy_00043_t3 | D73: 姜子牙 | E73: 角色id为24静态立绘
B74: 1025 | C74: c_ddtz_00049_t3 | D74: 道德天尊 | E74: 角色id为25静态立绘
B75: 1026 | C75: c_dhdj_00042_t3 | D75: 东华帝君 | E75: 角色id为26静态立绘
B76: 1027 | C76: c_mp_00051_t3 | D76: 孟婆 | E76: 角色id为27静态立绘
B77: 1028 | C77: c_sjnn_00012_t3 | D77: 石矶娘娘 | E77: 角色id为28静态立绘
B78: 1029 | C78: c_ygps_00025_t3 | D78: 月光菩萨 | E78: 角色id为29静态立绘
B79: 1030 | C79: c_ft_00026_t3 | D79: 梵天 | E79: 角色id为30静态立绘
B80: 1031 | C80: c_hhe_00011_t3 | D80: 红孩儿 | E80: 角色id为31静态立绘
B81: 1032 | C81: c_wg_00037_t3 | D81: 吴刚 | E81: 角色id为32静态立绘
B82: 1033 | C82: c_gyps_00020_t3_png | D82: 净光天女 | E82: 角色id为33静态立绘
B83: 1034 | C83: c_dst_00023_t3 | D83: 帝释天 | E83: 角色id为34静态立绘
B84: 1035 | C84: c_mz_00038_t3 | D84: 妈祖 | E84: 角色id为35静态立绘
B85: 1036 | C85: c_zgm_00039_t3 | D85: 赵公明 | E85: 角色id为36静态立绘
B86: 1037 | C86: c_lc_00050_t3 | D86: 罗刹 | E86: 角色id为37静态立绘
B87: 1038 | C87: c_yc_00052_t3 | D87: 夜叉 | E87: 角色id为38静态立绘
B88: 1039 | C88: c_pxps_00024_t3 | D88: 普贤菩萨 | E88: 角色id为39静态立绘
B89: 1040 | C89: c_yj_00040_t3_png | D89: 杨戬 | E89: 角色id为40静态立绘
B90: 1041 | C90: c_ttjz_00048_t3 | D90: 通天教主 | E90: 角色id为41静态立绘
B91: 1042 | C91: c_jtxn_00045_t3_png | D91: 九天玄女 | E91: 角色id为42静态立绘
B92: 1043 | C92: c_lslz_00046_t3_png | D92: 太阴星君 | E92: 角色id为43静态立绘
B93: 1044 | C93: c_hsmw_00010_t3 | D93: 混世魔王 | E93: 角色id为44静态立绘
B94: 1045 | C94: c_bhxz_00013_t3 | D94: 百花仙子 | E94: 角色id为45静态立绘
B95: 1046 | C95: c_ny_00036_t3 | D95: 女英 | E95: 角色id为46静态立绘
B96: 1047 | C96: c_cff_0047_t3 | D96: 大火妖 | E96: 角色id为47静态立绘
B97: 1048 | C97: c_xv_00071_t3 | D97: 雪女 | E97: 角色id为48静态立绘
B98: 1049 | C98: c_cff_0049_t3 | D98: 娜迦王 | E98: 角色id为49静态立绘
B99: 1050 | C99: c_jff_0050_t3 | D99: 摩呼 | E99: 角色id为50静态立绘
B100: 1051 | C100: c_ym_0051_t3 | D100: 半仙 | E100: 角色id为51静态立绘
B101: 1052 | C101: c_hl_00075_t3 | D101: 荷莲 | E101: 角色id为52静态立绘
B102: 1053 | C102: c_cff_0047_t3 | D102: 鬼差头子 | E102: 角色id为53静态立绘
B103: 1054 | C103: c_yff_0048_t3 | D103: 仙灵 | E103: 角色id为54静态立绘
B104: 1055 | C104: c_cff_0049_t3 | D104: 大淼淼 | E104: 角色id为55静态立绘
B105: 1056 | C105: c_jff_0050_t3 | D105: 大圭圭 | E105: 角色id为56静态立绘
B106: 1057 | C106: c_nxq_00054_t3 | D106: 聂小倩 | E106: 角色id为57静态立绘
B107: 1058 | C107: c_jy_00055_t3 | D107: 九婴 | E107: 角色id为58静态立绘
B108: 1059 | C108: c_ygl_00056_t3 | D108: 怨鬼灵 | E108: 角色id为59静态立绘
B109: 1060 | C109: c_yhj_00057_t3 | D109: 彼岸花 | E109: 角色id为60静态立绘
B110: 1061 | C110: c_dz_00058_t3 | D110: 地藏 | E110: 角色id为61静态立绘
B111: 1062 | C111: c_jll_00059_t3 | D111: 迦楼罗 | E111: 角色id为62静态立绘
B112: 1063 | C112: c_jlzz_00060_t3 | D112: 伽罗尊者 | E112: 角色id为63静态立绘
B113: 1064 | C113: c_axl_00061_t3 | D113: 阿修罗 | E113: 角色id为64静态立绘
B114: 1065 | C114: c_mz_00062_t3 | D114: 木吒 | E114: 角色id为65静态立绘
B115: 1066 | C115: c_mjn_00063_t3 | D115: 孟姜女 | E115: 角色id为66静态立绘
B116: 1067 | C116: c_md_00064_t3 | D116: 梦蝶 | E116: 角色id为67静态立绘
B117: 1068 | C117: c_jz_00065_t3 | D117: 七仙女 | E117: 角色id为68静态立绘
B118: 1069 | C118: c_hdxj_00066_t3 | D118: 火德星君 | E118: 角色id为69静态立绘
B119: 1070 | C119: c_sdxj_00067_t3 | D119: 水德星君 | E119: 角色id为70静态立绘
B120: 1071 | C120: c_jhsn_00068_t3 | D120: 九河神女 | E120: 角色id为71静态立绘
B121: 1072 | C121: c_lsx_00069_t3 | D121: 灵扇仙 | E121: 角色id为72静态立绘
B122: 1073 | C122: c_hy_00078_t3 | D122: 火妖 | E122: 角色id为73静态立绘
B123: 1074 | C123: c_nj_00079_t3 | D123: 娜迦奴 | E123: 角色id为74静态立绘
B124: 1075 | C124: c_fs_00080_t3 | D124: 方士 | E124: 角色id为75静态立绘
B125: 1076 | C125: c_gc_00081_t3 | D125: 鬼差 | E125: 角色id为76静态立绘
B126: 1077 | C126: c_ym_0051_t3 | D126: 大光 | E126: 角色id为77静态立绘
B127: 1078 | C127: c_ym_0052_t3 | D127: 大暗 | E127: 角色id为78静态立绘
B128: 1079 | C128: c_xhy_00082_t3 | D128: 小妖灵 | E128: 角色id为79静态立绘
B129: 1080 | C129: c_ynj_00083_t3 | D129: 幼娜灵 | E129: 角色id为80静态立绘
B130: 1081 | C130: c_dt_00084_t3 | D130: 方术灵 | E130: 角色id为81静态立绘
B131: 1082 | C131: c_gcll_00085_t3 | D131: 小道灵 | E131: 角色id为82静态立绘
B132: 1083 | C132: c_ym_0051_t3 | D132: 小光 | E132: 角色id为83静态立绘
B133: 1084 | C133: c_ym_0052_t3 | D133: 小暗 | E133: 角色id为84静态立绘
B134: 1085 | C134: c_ab_00014_t3 | D134: 敖丙 | E134: 角色id为85静态立绘
B135: 1086 | C135: c_jcdp_00027_t3 | D135: 金翅大鹏 | E135: 角色id为86静态立绘
B136: 1087 | C136: c_eh_00035_t3 | D136: 娥皇 | E136: 角色id为87静态立绘
B137: 1088 | C137: c_sgb_00041_t3 | D137: 申公豹 | E137: 角色id为88静态立绘
B138: 1089 | C138: c_rd_00019_t3 | D138: 燃灯 | E138: 角色id为89静态立绘
B139: 1090 | C139: c_ylw_00053_t3 | D139: 阎罗王 | E139: 角色id为90静态立绘
B140: 1091 | C140: c_cff_0049_t3 | D140: 小水 | E140: 角色id为91静态立绘
B141: 1092 | C141: c_jff_0050_t3 | D141: 小地 | E141: 角色id为92静态立绘
B142: 1093 | C142: c_ym_0051_t3 | D142: 小光 | E142: 角色id为93静态立绘
B143: 1094 | C143: c_ym_0052_t3 | D143: 小暗 | E143: 角色id为94静态立绘
B144: 1095 | C144: c_hyt_0032_t3 | D144: 一号 | E144: 角色id为95静态立绘
B145: 1096 | C145: c_cff_0049_t3 | D145: 二号 | E145: 角色id为96静态立绘
B146: 1097 | C146: c_cff_0049_t3 | D146: 三号 | E146: 角色id为97静态立绘
B147: 1098 | C147: c_cff_0049_t3 | D147: 四号 | E147: 角色id为98静态立绘
B148: 1099 | C148: c_cff_0049_t3 | D148: 五号 | E148: 角色id为99静态立绘
B149: 1100 | C149: c_qf_0046_t3 | D149: 六号 | E149: 角色id为100静态立绘
B150: 1501 | C150: r_class_mifa | E150: 角色职业秘法立绘
B151: 1502 | C151: r_class_shenghua | E151: 角色职业天罚立绘
B152: 1503 | C152: r_class_tianfa | E152: 角色职业武卫立绘
B153: 1504 | C153: r_class_wuwei | E153: 角色职业玄策立绘
B154: 1505 | C154: r_class_xuance | E154: 角色职业生花立绘
B155: 1510 | C155: r_CurrencyEquip_green | E155: 绿色装备通用图标
B156: 1511 | C156: r_CurrencyEquip_blue | E156: 蓝色装备通用图标
B157: 1512 | C157: r_CurrencyEquip_purple | E157: 紫色装备通用图标
B158: 1513 | C158: r_CurrencyEquip_orange | E158: 橙色装备通用图标
B159: 1520 | C159: r_RareItem_QuestNew_0001 | E159: 魔气碎块
B160: 1521 | C160: r_RareItem_QuestNew_0002 | E160: 吊桥钥匙
B161: 1522 | C161: r_RareItem_QuestNew_0003 | E161: 镇魔幡
B162: 1523 | C162: r_RareItem_QuestNew_0004 | E162: 魔王气息
B163: 1524 | C163: r_RareItem_QuestNew_0005 | E163: 匪徒腰牌
B164: 1525 | C164: r_RareItem_QuestNew_0006 | E164: 兽骨
B165: 1526 | C165: r_RareItem_QuestNew_0007 | E165: 野兽尖爪
B166: 1527 | C166: r_RareItem_QuestNew_0008 | E166: 尸毒玄骨
B167: 1528 | C167: r_RareItem_QuestNew_0009 | E167: 古猿白绒
B168: 1529 | C168: r_RareItem_QuestNew_0010 | E168: 盗贼的护身符
B169: 1530 | C169: r_RareItem_QuestNew_0011 | E169: 观澜珠
B170: 1531 | C170: r_RareItem_QuestNew_0011 | E170: 兽肉
B171: 1532 | C171: r_RareItem_QuestNew_0003 | E171: 刻笔
B172: 1533 | C172: r_RareItem_QuestNew_0001 | E172: 妖兽精血
B173: 1534 | C173: r_RareItem_QuestNew_0002 | E173: 迷魂之心
B174: 1535 | C174: r_RareItem_QuestNew_0004 | E174: 破损的兵器
B175: 1536 | C175: r_RareItem_MapReward_0004 | E175: 阵石
B176: 1537 | C176: r_RareItem_MapReward_0004 | E176: 记忆碎片
B177: 1538 | C177: r_RareItem_MapReward_0006 | E177: 木材
B178: 1539 | C178: r_RareItem_Quest_0012 | E178: 藏宝图
B179: 1540 | C179: r_RareItem_Quest_0014 | E179: 半卷藏宝图
B180: 1541 | C180: r_RareItem_QuestNew_0001 | E180: 忠义之心
B181: 1542 | C181: r_RareItem_QuestNew_0001 | E181: 仁慈之心
B182: 1543 | C182: r_RareItem_QuestNew_0001 | E182: 坚毅之心
B183: 1544 | C183: r_RareItem_QuestNew_0001 | E183: 羁绊之心
B184: 1545 | C184: r_RareItem_Quest_0024 | E184: 平民的财物
B185: 1546 | C185: r_RareItem_MapReward_0001 | E185: 长青叶
B186: 1547 | C186: r_RareItem_Quest_0009 | E186: 止血散
B187: 1548 | C187: r_RareItem_MapReward_0004 | E187: 耳目之石
B188: 1549 | C188: r_RareItem_Quest_0013 | E188: 饕餮之津
B189: 1550 | C189: r_RareItem_QuestNew_0001 | E189: 生死之悟
B190: 1551 | C190: r_RareMaterial_Talent_0003 | E190: 天山雪莲
B191: 1801 | C191: r_zjm_icon-jielin002 | E191: 戒灵
B192: 1802 | C192: r_zjm_yinyaoju | E192: 异妖
B193: 1803 | C193: r_zjm_icon-chengyuan002 | E193: 成员
B194: 1804 | C194: r_zjm_icon-cangku002 | E194: 仓库
B195: 1805 | C195: r_zjm_icon-zhujue002 | E195: 主角
B196: 1806 | C196: r_zjm_tianfushu | E196: 天赋
B197: 1807 | C197: r_zjm_haoyou | E197: 好友
B198: 1808 | C198: r_zjm_richangrenwu | E198: 日常任务
B199: 1809 | C199: r_zjm_huodongicon-yunmengqifu | E199: 云梦祈福
B200: 1810 | C200: r_zjm_huodongicon-jielinmibao | E200: 孙龙宝藏
... 1959 more rows

Sheet Sheet4
A1: r_fb_90001
A2: r_fb_90002
A3: r_fb_90003
A4: r_fb_90004
A5: r_fb_90005
A6: r_fb_90006
A7: r_fb_90007
A8: r_fb_90008
A9: r_fb_90009
A10: r_fb_90010
A11: r_fb_90011
A12: r_fb_90012
A13: r_fb_90013
A14: r_fb_90014
A15: r_fb_90015
A16: r_fb_90016
A17: r_fb_90017
A18: r_fb_90018
A19: r_fb_90019
A20: r_fb_90020
A21: r_fb_90021
A22: r_fb_90022
A23: r_fb_90023
A24: r_fb_90024
A25: r_fb_90025
A26: r_fb_90026
A27: r_fb_90027
A28: r_fb_90028
A29: r_fb_90029
A30: r_fb_90030
A31: r_fb_90031
A32: r_fb_90032
A33: r_fb_90033
A34: r_fb_90034
A35: r_fb_90035
A36: r_fb_90036
A37: r_fb_90037
A38: r_fb_90038
A39: r_fb_90039
A40: r_fb_90040
A41: r_fb_90041
A42: r_fb_90042
A43: r_fb_90043
A44: r_fb_90044
A45: r_fb_90045
A46: r_fb_90046
A47: r_fb_90047
A48: r_fb_90048
A49: r_fb_90049
A50: r_fb_90050
A51: r_fb_90051
A52: r_fb_90052

Sheet 辅助表
B1: id
B2: 10001 | C2: =RIGHT(B2,2) -> 01 | D2: c_syf_0016 | H2: c_首字母_id | P2: 201011 | Q2: =MID(P2,2,2) -> 01 | R2: =MID(P2,5,1) -> 1 | S2: =VLOOKUP(Q2,$C$2:$D$53,2,0) -> c_syf_0016 | T2: _tap | U2: =S2&T2 -> c_syf_0016_tap | X2: 凌甲 | Y2: =IF(X2="","",U2) -> c_syf_0016_tap | AD2: r | AE2: Resource | AF2: AP | AG2: 1 | AI2: =[2]!SUMSTRING(AD2:AG2,"_") -> 
B3: 10002 | C3: =RIGHT(B3,2) -> 02 | D3: c_ch_0015 | P3: 201012 | Q3: =MID(P3,2,2) -> 01 | R3: =MID(P3,5,1) -> 1 | S3: =VLOOKUP(Q3,$C$2:$D$53,2,0) -> c_syf_0016 | T3: _tap | U3: =S3&T3 -> c_syf_0016_tap | X3: 凌甲 | Y3: =IF(X3="","",U3) -> c_syf_0016_tap | AD3: r | AE3: Resource | AF3: AP | AG3: 2 | AI3: =[2]!SUMSTRING(AD3:AG3,"_") -> 
B4: 10003 | C4: 03 | D4: c_xhht_0017 | P4: 201013 | Q4: 01 | R4: 1 | S4: c_syf_0016 | T4: _tap | U4: c_syf_0016_tap | X4: 凌甲 | Y4: c_syf_0016_tap | AD4: r | AE4: LvUpItem | AF4: CharaGU | AG4: 1 | AI4: =[2]!SUMSTRING(AD4:AG4,"_") -> 
B5: 10004 | C5: 04 | D5: c_yr_0007 | J5: 1 | K5: tap | P5: 201014 | Q5: 01 | R5: 1 | S5: c_syf_0016 | T5: _tap | U5: c_syf_0016_tap | X5: 凌甲 | Y5: c_syf_0016_tap | AD5: r | AE5: act | AF5: emmc | AG5: scoreup | AI5: =[2]!SUMSTRING(AD5:AG5,"_") -> 
B6: 10005 | C6: 05 | D6: c_dmk_0043 | J6: 2 | K6: slid | P6: 201015 | Q6: 01 | R6: 1 | S6: c_syf_0016 | T6: _tap | U6: c_syf_0016_tap | X6: 凌甲 | Y6: c_syf_0016_tap | AD6: r | AE6: LvUpItem | AF6: CharaGU | AG6: 3 | AI6: =[2]!SUMSTRING(AD6:AG6,"_") -> 
B7: 10006 | C7: 06 | D7: c_qlq_0006 | P7: 201021 | Q7: 01 | R7: 2 | S7: c_syf_0016 | T7: _slide | U7: c_syf_0016_slide | X7: 震岳 | Y7: c_syf_0016_slide | AD7: r | AE7: LvUpItem | AF7: CharaGU | AG7: 4 | AI7: =[2]!SUMSTRING(AD7:AG7,"_") -> 
B8: 10007 | C8: 07 | D8: c_jz_0002 | P8: 201022 | Q8: 01 | R8: 2 | S8: c_syf_0016 | T8: _slide | U8: c_syf_0016_slide | X8: 震岳 | Y8: c_syf_0016_slide | AD8: r | AE8: Box | AF8: CharaGUBox | AG8: 3 | AI8: =[2]!SUMSTRING(AD8:AG8,"_") -> 
B9: 10008 | C9: 08 | D9: c_bmf_0004 | P9: 201023 | Q9: 01 | R9: 2 | S9: c_syf_0016 | T9: _slide | U9: c_syf_0016_slide | X9: 震岳 | Y9: c_syf_0016_slide | AD9: r | AE9: Box | AF9: CharaGUBox | AG9: 4 | AI9: =[2]!SUMSTRING(AD9:AG9,"_") -> 
B10: 10009 | C10: 09 | D10: c_qf_0046 | P10: 201024 | Q10: 01 | R10: 2 | S10: c_syf_0016 | T10: _slide | U10: c_syf_0016_slide | X10: 震岳 | Y10: c_syf_0016_slide | AD10: r | AE10: Box | AF10: CharaGUBox | AG10: 5 | AI10: =[2]!SUMSTRING(AD10:AG10,"_") -> 
B11: 10010 | C11: 10 | D11: c_yqj_0042 | P11: 201025 | Q11: 01 | R11: 2 | S11: c_syf_0016 | T11: _slide | U11: c_syf_0016_slide | X11: 震岳 | Y11: c_syf_0016_slide | AD11: r | AE11: Box | AF11: CharaGUBox | AG11: 6 | AI11: =[2]!SUMSTRING(AD11:AG11,"_") -> 
B12: 10011 | C12: 11 | D12: c_yy_0041 | P12: 202011 | Q12: 02 | R12: 1 | S12: c_ch_0015 | T12: =T2 -> _tap | U12: c_ch_0015_tap | X12: 啸牙 | Y12: c_ch_0015_tap | AD12: r | AE12: Box | AF12: CharaGUBox | AG12: 7 | AI12: =[2]!SUMSTRING(AD12:AG12,"_") -> 
B13: 10012 | C13: 12 | D13: c_mrzq_0010 | P13: 202012 | Q13: 02 | R13: 1 | S13: c_ch_0015 | T13: =T3 -> _tap | U13: c_ch_0015_tap | X13: 啸牙 | Y13: c_ch_0015_tap | AD13: r | AE13: Box | AF13: CharaGUBox | AG13: 8 | AI13: =[2]!SUMSTRING(AD13:AG13,"_") -> 
B14: 10013 | C14: 13 | D14: c_yl_0014 | P14: 202013 | Q14: 02 | R14: 1 | S14: c_ch_0015 | T14: _tap | U14: c_ch_0015_tap | X14: 啸牙 | Y14: c_ch_0015_tap | AD14: r | AE14: Box | AF14: CharaGUBox | AG14: 9 | AI14: =[2]!SUMSTRING(AD14:AG14,"_") -> 
B15: 10014 | C15: 14 | D15: c_gt_0001 | P15: 202014 | Q15: 02 | R15: 1 | S15: c_ch_0015 | T15: _tap | U15: c_ch_0015_tap | X15: 啸牙 | Y15: c_ch_0015_tap | AD15: r | AE15: act | AF15: 2 | AI15: =[2]!SUMSTRING(AD15:AG15,"_") -> 
B16: 10015 | C16: 15 | D16: c_xy_0012 | P16: 202015 | Q16: 02 | R16: 1 | S16: c_ch_0015 | T16: _tap | U16: c_ch_0015_tap | X16: 啸牙 | Y16: c_ch_0015_tap | AD16: r | AE16: Resource | AF16: Coin | AG16: 2 | AI16: =[2]!SUMSTRING(AD16:AG16,"_") -> 
B17: 10016 | C17: 16 | D17: c_cyh_0008 | P17: 202021 | Q17: 02 | R17: 2 | S17: c_ch_0015 | T17: _slide | U17: c_ch_0015_slide | X17: 白虎风涛 | Y17: c_ch_0015_slide | AD17: r | AE17: Resource | AF17: Coin | AG17: 3 | AI17: =[2]!SUMSTRING(AD17:AG17,"_") -> 
B18: 10017 | C18: 17 | D18: c_sxdw_0053 | P18: 202022 | Q18: 02 | R18: 2 | S18: c_ch_0015 | T18: _slide | U18: c_ch_0015_slide | X18: 白虎风涛 | Y18: c_ch_0015_slide | AD18: r | AE18: Resource | AF18: Exp | AG18: 1 | AI18: =[2]!SUMSTRING(AD18:AG18,"_") -> 
B19: 10018 | C19: 18 | D19: c_zh_0044 | P19: 202023 | Q19: 02 | R19: 2 | S19: c_ch_0015 | T19: _slide | U19: c_ch_0015_slide | X19: 白虎风涛 | Y19: c_ch_0015_slide | AD19: r | AE19: Resource | AF19: Exp | AG19: 2 | AI19: =[2]!SUMSTRING(AD19:AG19,"_") -> 
B20: 10019 | C20: 19 | D20: c_kq_0018 | P20: 202024 | Q20: 02 | R20: 2 | S20: c_ch_0015 | T20: _slide | U20: c_ch_0015_slide | X20: 白虎风涛 | Y20: c_ch_0015_slide | AD20: r | AE20: RareItem | AF20: Specail | AG20: 1 | AI20: =[2]!SUMSTRING(AD20:AG20,"_") -> 
B21: 10020 | C21: 20 | D21: c_ywy_0040 | P21: 202025 | Q21: 02 | R21: 2 | S21: c_ch_0015 | T21: _slide | U21: c_ch_0015_slide | X21: 白虎风涛 | Y21: c_ch_0015_slide | AD21: r | AE21: RareItem | AF21: Specail | AG21: 2 | AI21: =[2]!SUMSTRING(AD21:AG21,"_") -> 
B22: 10021 | C22: 21 | D22: c_mlmn_0054 | P22: 203011 | Q22: 03 | R22: 1 | S22: c_xhht_0017 | T22: _tap | U22: c_xhht_0017_tap | X22: 断鸿 | Y22: c_xhht_0017_tap | AD22: r | AE22: Material | AF22: Mineral | AG22: 1 | AI22: =[2]!SUMSTRING(AD22:AG22,"_") -> 
B23: 10022 | C23: 22 | D23: c_ywg_0045 | P23: 203012 | Q23: 03 | R23: 1 | S23: c_xhht_0017 | T23: _tap | U23: c_xhht_0017_tap | X23: 断鸿 | Y23: c_xhht_0017_tap | AD23: r | AE23: Material | AF23: Mineral | AG23: 2 | AI23: =[2]!SUMSTRING(AD23:AG23,"_") -> 
B24: 10023 | C24: 23 | D24: c_y_0013 | P24: 203013 | Q24: 03 | R24: 1 | S24: c_xhht_0017 | T24: _tap | U24: c_xhht_0017_tap | X24: 断鸿 | Y24: c_xhht_0017_tap | AD24: r | AE24: Material | AF24: Mineral | AG24: 3 | AI24: =[2]!SUMSTRING(AD24:AG24,"_") -> 
B25: 10024 | C25: 24 | D25: c_xjr_0003 | P25: 203014 | Q25: 03 | R25: 1 | S25: c_xhht_0017 | T25: _tap | U25: c_xhht_0017_tap | X25: 断鸿 | Y25: c_xhht_0017_tap | AD25: r | AE25: Material | AF25: Mineral | AG25: 4 | AI25: =[2]!SUMSTRING(AD25:AG25,"_") -> 
B26: 10025 | C26: 25 | D26: c_tx_0011 | P26: 203015 | Q26: 03 | R26: 1 | S26: c_xhht_0017 | T26: _tap | U26: c_xhht_0017_tap | X26: 断鸿 | Y26: c_xhht_0017_tap | AD26: r | AE26: Material | AF26: Mineral | AG26: 5 | AI26: =[2]!SUMSTRING(AD26:AG26,"_") -> 
B27: 10026 | C27: 26 | D27: c_sq_0019 | P27: 203021 | Q27: 03 | R27: 2 | S27: c_xhht_0017 | T27: _slide | U27: c_xhht_0017_slide | X27: 裂山贯云 | Y27: c_xhht_0017_slide | AD27: r | AE27: Material | AF27: Mineral | AG27: 6 | AI27: =[2]!SUMSTRING(AD27:AG27,"_") -> 
B28: 10027 | C28: 27 | D28: c_nye_0020 | P28: 203022 | Q28: 03 | R28: 2 | S28: c_xhht_0017 | T28: _slide | U28: c_xhht_0017_slide | X28: 裂山贯云 | Y28: c_xhht_0017_slide | AD28: r | AE28: Material | AF28: MakedMineral | AG28: 1 | AI28: =[2]!SUMSTRING(AD28:AG28,"_") -> 
B29: 10028 | C29: 28 | D29: c_zc_0021 | P29: 203023 | Q29: 03 | R29: 2 | S29: c_xhht_0017 | T29: _slide | U29: c_xhht_0017_slide | X29: 裂山贯云 | Y29: c_xhht_0017_slide | AD29: r | AE29: Material | AF29: MakedMineral | AG29: 2 | AI29: =[2]!SUMSTRING(AD29:AG29,"_") -> 
B30: 10029 | C30: 29 | D30: c_lhmn_0056 | P30: 203024 | Q30: 03 | R30: 2 | S30: c_xhht_0017 | T30: _slide | U30: c_xhht_0017_slide | X30: 裂山贯云 | Y30: c_xhht_0017_slide | AD30: r | AE30: Material | AF30: MakedMineral | AG30: 3 | AI30: =[2]!SUMSTRING(AD30:AG30,"_") -> 
B31: 10030 | C31: 30 | D31: c_yy_0023 | P31: 203025 | Q31: 03 | R31: 2 | S31: c_xhht_0017 | T31: _slide | U31: c_xhht_0017_slide | X31: 裂山贯云 | Y31: c_xhht_0017_slide | AD31: r | AE31: Box | AF31: MineralBox | AG31: 1 | AI31: =[2]!SUMSTRING(AD31:AG31,"_") -> 
B32: 10031 | C32: 31 | D32: c_jpw_0024 | P32: 204011 | Q32: 04 | R32: 1 | S32: c_yr_0007 | T32: _tap | U32: c_yr_0007_tap | X32: 轻流 | Y32: c_yr_0007_tap | AD32: r | AE32: Box | AF32: MineralBox | AG32: 2 | AI32: =[2]!SUMSTRING(AD32:AG32,"_") -> 
B33: 10032 | C33: 32 | D33: c_ly_0025 | P33: 204012 | Q33: 04 | R33: 1 | S33: c_yr_0007 | T33: _tap | U33: c_yr_0007_tap | X33: 轻流 | Y33: c_yr_0007_tap | AD33: r | AE33: Box | AF33: MineralBox | AG33: 3 | AI33: =[2]!SUMSTRING(AD33:AG33,"_") -> 
B34: 10033 | C34: 33 | D34: c_xy_0026 | P34: 204013 | Q34: 04 | R34: 1 | S34: c_yr_0007 | T34: _tap | U34: c_yr_0007_tap | X34: 轻流 | Y34: c_yr_0007_tap | AD34: r | AE34: Box | AF34: MineralBox | AG34: 4 | AI34: =[2]!SUMSTRING(AD34:AG34,"_") -> 
B35: 10034 | C35: 34 | D35: c_fm_0027 | P35: 204014 | Q35: 04 | R35: 1 | S35: c_yr_0007 | T35: _tap | U35: c_yr_0007_tap | X35: 轻流 | Y35: c_yr_0007_tap | AD35: r | AE35: Box | AF35: MineralBox | AG35: 5 | AI35: =[2]!SUMSTRING(AD35:AG35,"_") -> 
B36: 10035 | C36: 35 | D36: c_skr_0028 | P36: 204015 | Q36: 04 | R36: 1 | S36: c_yr_0007 | T36: _tap | U36: c_yr_0007_tap | X36: 轻流 | Y36: c_yr_0007_tap | AD36: r | AE36: Box | AF36: MineralBox | AG36: 6 | AI36: =[2]!SUMSTRING(AD36:AG36,"_") -> 
B37: 10036 | C37: 36 | D37: c_jy_0029 | P37: 204021 | Q37: 04 | R37: 2 | S37: c_yr_0007 | T37: _slide | U37: c_yr_0007_slide | X37: 天咏诀 | Y37: c_yr_0007_slide | AD37: r | AE37: Box | AF37: MineralBox | AG37: 7 | AI37: =[2]!SUMSTRING(AD37:AG37,"_") -> 
B38: 10037 | C38: 37 | D38: c_xl_0030 | P38: 204022 | Q38: 04 | R38: 2 | S38: c_yr_0007 | T38: _slide | U38: c_yr_0007_slide | X38: 天咏诀 | Y38: c_yr_0007_slide | AD38: r | AE38: Box | AF38: MineralBox | AG38: 8 | AI38: =[2]!SUMSTRING(AD38:AG38,"_") -> 
B39: 10038 | C39: 38 | D39: c_cs_0031 | P39: 204023 | Q39: 04 | R39: 2 | S39: c_yr_0007 | T39: _slide | U39: c_yr_0007_slide | X39: 天咏诀 | Y39: c_yr_0007_slide | AD39: r | AE39: Box | AF39: MineralBox | AG39: 9 | AI39: =[2]!SUMSTRING(AD39:AG39,"_") -> 
B40: 10039 | C40: 39 | D40: c_hyt_0032 | P40: 204024 | Q40: 04 | R40: 2 | S40: c_yr_0007 | T40: _slide | U40: c_yr_0007_slide | X40: 天咏诀 | Y40: c_yr_0007_slide | AD40: r | AE40: Box | AF40: MineralBox | AG40: 10 | AI40: =[2]!SUMSTRING(AD40:AG40,"_") -> 
B41: 10040 | C41: 40 | D41: c_rj_0033 | P41: 204025 | Q41: 04 | R41: 2 | S41: c_yr_0007 | T41: _slide | U41: c_yr_0007_slide | X41: 天咏诀 | Y41: c_yr_0007_slide | AD41: r | AE41: Box | AF41: MineralBox | AG41: 11 | AI41: =[2]!SUMSTRING(AD41:AG41,"_") -> 
B42: 10041 | C42: 41 | D42: c_mc_0034 | P42: 205011 | Q42: 05 | R42: 1 | S42: c_dmk_0043 | T42: _tap | U42: c_dmk_0043_tap | X42: 长槐琼灯 | Y42: c_dmk_0043_tap | AD42: r | AE42: Box | AF42: MineralBox | AG42: 12 | AI42: =[2]!SUMSTRING(AD42:AG42,"_") -> 
B43: 10042 | C43: 42 | D43: c_yl_0035 | P43: 205012 | Q43: 05 | R43: 1 | S43: c_dmk_0043 | T43: _tap | U43: c_dmk_0043_tap | X43: 长槐琼灯 | Y43: c_dmk_0043_tap | AD43: r | AE43: RareItem | AF43: Specail | AG43: 3 | AI43: =[2]!SUMSTRING(AD43:AG43,"_") -> 
B44: 10043 | C44: 43 | D44: c_wl_0036 | P44: 205013 | Q44: 05 | R44: 1 | S44: c_dmk_0043 | T44: _tap | U44: c_dmk_0043_tap | X44: 长槐琼灯 | Y44: c_dmk_0043_tap | AD44: r | AE44: RareItem | AF44: Specail | AG44: 4 | AI44: =[2]!SUMSTRING(AD44:AG44,"_") -> 
B45: 10044 | C45: 44 | D45: c_fjzd_0055 | P45: 205014 | Q45: 05 | R45: 1 | S45: c_dmk_0043 | T45: _tap | U45: c_dmk_0043_tap | X45: 长槐琼灯 | Y45: c_dmk_0043_tap | AD45: r | AE45: RareItem | AF45: Specail | AG45: 5 | AI45: =[2]!SUMSTRING(AD45:AG45,"_") -> 
B46: 10045 | C46: 45 | D46: c_sk_0038 | P46: 205015 | Q46: 05 | R46: 1 | S46: c_dmk_0043 | T46: _tap | U46: c_dmk_0043_tap | X46: 长槐琼灯 | Y46: c_dmk_0043_tap | AD46: r | AE46: RareItem | AF46: MapPiece | AG46: 1 | AI46: =[2]!SUMSTRING(AD46:AG46,"_") -> 
B47: 10046 | C47: 46 | D47: c_ly_0039 | P47: 205021 | Q47: 05 | R47: 2 | S47: c_dmk_0043 | T47: _slide | U47: c_dmk_0043_slide | X47: 百卉含英 | Y47: c_dmk_0043_slide | AD47: r | AE47: RareItem | AF47: MapPiece | AG47: 2 | AI47: =[2]!SUMSTRING(AD47:AG47,"_") -> 
B48: 10047 | C48: 47 | D48: c_cff_0047 | P48: 205022 | Q48: 05 | R48: 2 | S48: c_dmk_0043 | T48: _slide | U48: c_dmk_0043_slide | X48: 百卉含英 | Y48: c_dmk_0043_slide | AD48: r | AE48: RareItem | AF48: Specail | AG48: 6 | AI48: =[2]!SUMSTRING(AD48:AG48,"_") -> 
B49: 10048 | C49: 48 | D49: c_yff_0048 | P49: 205023 | Q49: 05 | R49: 2 | S49: c_dmk_0043 | T49: _slide | U49: c_dmk_0043_slide | X49: 百卉含英 | Y49: c_dmk_0043_slide | AD49: r | AE49: RareItem | AF49: Specail | AG49: 7 | AI49: =[2]!SUMSTRING(AD49:AG49,"_") -> 
B50: 10049 | C50: 49 | D50: c_cff_0049 | P50: 205024 | Q50: 05 | R50: 2 | S50: c_dmk_0043 | T50: _slide | U50: c_dmk_0043_slide | X50: 百卉含英 | Y50: c_dmk_0043_slide | AD50: r | AE50: RareMaterial | AF50: Rune | AG50: 1 | AI50: =[2]!SUMSTRING(AD50:AG50,"_") -> 
B51: 10050 | C51: 50 | D51: c_jff_0050 | P51: 205025 | Q51: 05 | R51: 2 | S51: c_dmk_0043 | T51: _slide | U51: c_dmk_0043_slide | X51: 百卉含英 | Y51: c_dmk_0043_slide | AD51: r | AE51: RareMaterial | AF51: Rune | AG51: 2 | AI51: =[2]!SUMSTRING(AD51:AG51,"_") -> 
B52: 10051 | C52: 51 | D52: c_ym_0051 | P52: 206011 | Q52: 06 | R52: 1 | S52: c_qlq_0006 | T52: _tap | U52: c_qlq_0006_tap | X52: 阳炎破阵曲 | Y52: c_qlq_0006_tap | AD52: r | AE52: RareMaterial | AF52: Rune | AG52: 3 | AI52: =[2]!SUMSTRING(AD52:AG52,"_") -> 
B53: 10052 | C53: 52 | D53: c_ym_0052 | P53: 206012 | Q53: 06 | R53: 1 | S53: c_qlq_0006 | T53: _tap | U53: c_qlq_0006_tap | X53: 阳炎破阵曲 | Y53: c_qlq_0006_tap | AD53: r | AE53: Rune | AF53: RareMaterial | AG53: 4 | AI53: =[2]!SUMSTRING(AD53:AG53,"_") -> 
P54: 206013 | Q54: 06 | R54: 1 | S54: c_qlq_0006 | T54: _tap | U54: c_qlq_0006_tap | X54: 阳炎破阵曲 | Y54: c_qlq_0006_tap
P55: 206014 | Q55: 06 | R55: 1 | S55: c_qlq_0006 | T55: _tap | U55: c_qlq_0006_tap | X55: 阳炎破阵曲 | Y55: c_qlq_0006_tap
P56: 206015 | Q56: 06 | R56: 1 | S56: c_qlq_0006 | T56: _tap | U56: c_qlq_0006_tap | X56: 阳炎破阵曲 | Y56: c_qlq_0006_tap
P57: 206021 | Q57: 06 | R57: 2 | S57: c_qlq_0006 | T57: _slide | U57: c_qlq_0006_slide | X57: 焚心引 | Y57: c_qlq_0006_slide
P58: 206022 | Q58: 06 | R58: 2 | S58: c_qlq_0006 | T58: _slide | U58: c_qlq_0006_slide | X58: 焚心引 | Y58: c_qlq_0006_slide
P59: 206023 | Q59: 06 | R59: 2 | S59: c_qlq_0006 | T59: _slide | U59: c_qlq_0006_slide | X59: 焚心引 | Y59: c_qlq_0006_slide
P60: 206024 | Q60: 06 | R60: 2 | S60: c_qlq_0006 | T60: _slide | U60: c_qlq_0006_slide | X60: 焚心引 | Y60: c_qlq_0006_slide
P61: 206025 | Q61: 06 | R61: 2 | S61: c_qlq_0006 | T61: _slide | U61: c_qlq_0006_slide | X61: 焚心引 | Y61: c_qlq_0006_slide
P62: 207011 | Q62: 07 | R62: 1 | S62: c_jz_0002 | T62: _tap | U62: c_jz_0002_tap | X62: 破甲裂 | Y62: c_jz_0002_tap
P63: 207012 | Q63: 07 | R63: 1 | S63: c_jz_0002 | T63: _tap | U63: c_jz_0002_tap | X63: 破甲裂 | Y63: c_jz_0002_tap
P64: 207013 | Q64: 07 | R64: 1 | S64: c_jz_0002 | T64: _tap | U64: c_jz_0002_tap | X64: 破甲裂 | Y64: c_jz_0002_tap
P65: 207014 | Q65: 07 | R65: 1 | S65: c_jz_0002 | T65: _tap | U65: c_jz_0002_tap | X65: 破甲裂 | Y65: c_jz_0002_tap
P66: 207015 | Q66: 07 | R66: 1 | S66: c_jz_0002 | T66: _tap | U66: c_jz_0002_tap | X66: 破甲裂 | Y66: c_jz_0002_tap
P67: 207021 | Q67: =MID(P67,2,2) -> 07 | R67: =MID(P67,5,1) -> 2 | S67: =VLOOKUP(Q67,$C$2:$D$53,2,0) -> c_jz_0002 | T67: _slide | U67: =S67&T67 -> c_jz_0002_slide | X67: 轮转之海 | Y67: =IF(X67="","",U67) -> c_jz_0002_slide
P68: 207022 | Q68: 07 | R68: 2 | S68: c_jz_0002 | T68: _slide | U68: c_jz_0002_slide | X68: 轮转之海 | Y68: c_jz_0002_slide
P69: 207023 | Q69: 07 | R69: 2 | S69: c_jz_0002 | T69: _slide | U69: c_jz_0002_slide | X69: 轮转之海 | Y69: c_jz_0002_slide
P70: 207024 | Q70: 07 | R70: 2 | S70: c_jz_0002 | T70: _slide | U70: c_jz_0002_slide | X70: 轮转之海 | Y70: c_jz_0002_slide
P71: 207025 | Q71: 07 | R71: 2 | S71: c_jz_0002 | T71: _slide | U71: c_jz_0002_slide | X71: 轮转之海 | Y71: c_jz_0002_slide
P72: 208011 | Q72: 08 | R72: 1 | S72: c_bmf_0004 | T72: _tap | U72: c_bmf_0004_tap | X72: 幻境之瞳 | Y72: c_bmf_0004_tap
P73: 208012 | Q73: 08 | R73: 1 | S73: c_bmf_0004 | T73: _tap | U73: c_bmf_0004_tap | X73: 幻境之瞳 | Y73: c_bmf_0004_tap
P74: 208013 | Q74: 08 | R74: 1 | S74: c_bmf_0004 | T74: _tap | U74: c_bmf_0004_tap | X74: 幻境之瞳 | Y74: c_bmf_0004_tap
P75: 208014 | Q75: 08 | R75: 1 | S75: c_bmf_0004 | T75: _tap | U75: c_bmf_0004_tap | X75: 幻境之瞳 | Y75: c_bmf_0004_tap
P76: 208015 | Q76: 08 | R76: 1 | S76: c_bmf_0004 | T76: _tap | U76: c_bmf_0004_tap | X76: 幻境之瞳 | Y76: c_bmf_0004_tap
P77: 208021 | Q77: 08 | R77: 2 | S77: c_bmf_0004 | T77: =T67 -> _slide | U77: c_bmf_0004_slide | X77: 无尽莲塘 | Y77: c_bmf_0004_slide
P78: 208022 | Q78: 08 | R78: 2 | S78: c_bmf_0004 | T78: _slide | U78: c_bmf_0004_slide | X78: 无尽莲塘 | Y78: c_bmf_0004_slide
P79: 208023 | Q79: 08 | R79: 2 | S79: c_bmf_0004 | T79: _slide | U79: c_bmf_0004_slide | X79: 无尽莲塘 | Y79: c_bmf_0004_slide
P80: 208024 | Q80: 08 | R80: 2 | S80: c_bmf_0004 | T80: _slide | U80: c_bmf_0004_slide | X80: 无尽莲塘 | Y80: c_bmf_0004_slide
P81: 208025 | Q81: 08 | R81: 2 | S81: c_bmf_0004 | T81: _slide | U81: c_bmf_0004_slide | X81: 无尽莲塘 | Y81: c_bmf_0004_slide
P82: 209011 | Q82: 09 | R82: 1 | S82: c_qf_0046 | T82: _tap | U82: c_qf_0046_tap | X82: 黑符 | Y82: c_qf_0046_tap
P83: 209012 | Q83: 09 | R83: 1 | S83: c_qf_0046 | T83: _tap | U83: c_qf_0046_tap | X83: 黑符 | Y83: c_qf_0046_tap
P84: 209013 | Q84: 09 | R84: 1 | S84: c_qf_0046 | T84: _tap | U84: c_qf_0046_tap | X84: 黑符 | Y84: c_qf_0046_tap
P85: 209014 | Q85: 09 | R85: 1 | S85: c_qf_0046 | T85: _tap | U85: c_qf_0046_tap | X85: 黑符 | Y85: c_qf_0046_tap
P86: 209015 | Q86: 09 | R86: 1 | S86: c_qf_0046 | T86: _tap | U86: c_qf_0046_tap | X86: 黑符 | Y86: c_qf_0046_tap
P87: 209021 | Q87: 09 | R87: 2 | S87: c_qf_0046 | T87: _slide | U87: c_qf_0046_slide | X87: 炎冥锁狱 | Y87: c_qf_0046_slide
P88: 209022 | Q88: 09 | R88: 2 | S88: c_qf_0046 | T88: _slide | U88: c_qf_0046_slide | X88: 炎冥锁狱 | Y88: c_qf_0046_slide
P89: 209023 | Q89: 09 | R89: 2 | S89: c_qf_0046 | T89: _slide | U89: c_qf_0046_slide | X89: 炎冥锁狱 | Y89: c_qf_0046_slide
P90: 209024 | Q90: 09 | R90: 2 | S90: c_qf_0046 | T90: _slide | U90: c_qf_0046_slide | X90: 炎冥锁狱 | Y90: c_qf_0046_slide
P91: 209025 | Q91: 09 | R91: 2 | S91: c_qf_0046 | T91: _slide | U91: c_qf_0046_slide | X91: 炎冥锁狱 | Y91: c_qf_0046_slide
P92: 210011 | Q92: 10 | R92: 1 | S92: c_yqj_0042 | T92: _tap | U92: c_yqj_0042_tap | X92: 涡流 | Y92: c_yqj_0042_tap
P93: 210012 | Q93: 10 | R93: 1 | S93: c_yqj_0042 | T93: _tap | U93: c_yqj_0042_tap | X93: 涡流 | Y93: c_yqj_0042_tap
P94: 210013 | Q94: 10 | R94: 1 | S94: c_yqj_0042 | T94: _tap | U94: c_yqj_0042_tap | X94: 涡流 | Y94: c_yqj_0042_tap
P95: 210014 | Q95: 10 | R95: 1 | S95: c_yqj_0042 | T95: _tap | U95: c_yqj_0042_tap | X95: 涡流 | Y95: c_yqj_0042_tap
P96: 210015 | Q96: 10 | R96: 1 | S96: c_yqj_0042 | T96: _tap | U96: c_yqj_0042_tap | X96: 涡流 | Y96: c_yqj_0042_tap
P97: 210021 | Q97: 10 | R97: 2 | S97: c_yqj_0042 | T97: _slide | U97: c_yqj_0042_slide | X97: 龙兴之潮 | Y97: c_yqj_0042_slide
P98: 210022 | Q98: 10 | R98: 2 | S98: c_yqj_0042 | T98: _slide | U98: c_yqj_0042_slide | X98: 龙兴之潮 | Y98: c_yqj_0042_slide
P99: 210023 | Q99: 10 | R99: 2 | S99: c_yqj_0042 | T99: _slide | U99: c_yqj_0042_slide | X99: 龙兴之潮 | Y99: c_yqj_0042_slide
P100: 210024 | Q100: 10 | R100: 2 | S100: c_yqj_0042 | T100: _slide | U100: c_yqj_0042_slide | X100: 龙兴之潮 | Y100: c_yqj_0042_slide
P101: 210025 | Q101: 10 | R101: 2 | S101: c_yqj_0042 | T101: _slide | U101: c_yqj_0042_slide | X101: 龙兴之潮 | Y101: c_yqj_0042_slide
P102: 211011 | Q102: 11 | R102: 1 | S102: c_yy_0041 | T102: _tap | U102: c_yy_0041_tap | X102: 地灵咒 | Y102: c_yy_0041_tap
P103: 211012 | Q103: 11 | R103: 1 | S103: c_yy_0041 | T103: _tap | U103: c_yy_0041_tap | X103: 地灵咒 | Y103: c_yy_0041_tap
P104: 211013 | Q104: 11 | R104: 1 | S104: c_yy_0041 | T104: _tap | U104: c_yy_0041_tap | X104: 地灵咒 | Y104: c_yy_0041_tap
P105: 211014 | Q105: 11 | R105: 1 | S105: c_yy_0041 | T105: _tap | U105: c_yy_0041_tap | X105: 地灵咒 | Y105: c_yy_0041_tap
P106: 211015 | Q106: 11 | R106: 1 | S106: c_yy_0041 | T106: _tap | U106: c_yy_0041_tap | X106: 地灵咒 | Y106: c_yy_0041_tap
P107: 211021 | Q107: 11 | R107: 2 | S107: c_yy_0041 | T107: _slide | U107: c_yy_0041_slide | X107: 缚傀诀 | Y107: c_yy_0041_slide
P108: 211022 | Q108: 11 | R108: 2 | S108: c_yy_0041 | T108: _slide | U108: c_yy_0041_slide | X108: 缚傀诀 | Y108: c_yy_0041_slide
P109: 211023 | Q109: 11 | R109: 2 | S109: c_yy_0041 | T109: _slide | U109: c_yy_0041_slide | X109: 缚傀诀 | Y109: c_yy_0041_slide
P110: 211024 | Q110: 11 | R110: 2 | S110: c_yy_0041 | T110: _slide | U110: c_yy_0041_slide | X110: 缚傀诀 | Y110: c_yy_0041_slide
P111: 211025 | Q111: 11 | R111: 2 | S111: c_yy_0041 | T111: _slide | U111: c_yy_0041_slide | X111: 缚傀诀 | Y111: c_yy_0041_slide
P112: 212011 | Q112: 12 | R112: 1 | S112: c_mrzq_0010 | T112: _tap | U112: c_mrzq_0010_tap | X112: 焚花 | Y112: c_mrzq_0010_tap
P113: 212012 | Q113: 12 | R113: 1 | S113: c_mrzq_0010 | T113: _tap | U113: c_mrzq_0010_tap | X113: 焚花 | Y113: c_mrzq_0010_tap
P114: 212013 | Q114: 12 | R114: 1 | S114: c_mrzq_0010 | T114: _tap | U114: c_mrzq_0010_tap | X114: 焚花 | Y114: c_mrzq_0010_tap
P115: 212014 | Q115: 12 | R115: 1 | S115: c_mrzq_0010 | T115: _tap | U115: c_mrzq_0010_tap | X115: 焚花 | Y115: c_mrzq_0010_tap
P116: 212015 | Q116: 12 | R116: 1 | S116: c_mrzq_0010 | T116: _tap | U116: c_mrzq_0010_tap | X116: 焚花 | Y116: c_mrzq_0010_tap
P117: 212021 | Q117: 12 | R117: 2 | S117: c_mrzq_0010 | T117: _slide | U117: c_mrzq_0010_slide | X117: 断雨 | Y117: c_mrzq_0010_slide
P118: 212022 | Q118: 12 | R118: 2 | S118: c_mrzq_0010 | T118: _slide | U118: c_mrzq_0010_slide | X118: 断雨 | Y118: c_mrzq_0010_slide
P119: 212023 | Q119: 12 | R119: 2 | S119: c_mrzq_0010 | T119: _slide | U119: c_mrzq_0010_slide | X119: 断雨 | Y119: c_mrzq_0010_slide
P120: 212024 | Q120: 12 | R120: 2 | S120: c_mrzq_0010 | T120: _slide | U120: c_mrzq_0010_slide | X120: 断雨 | Y120: c_mrzq_0010_slide
P121: 212025 | Q121: 12 | R121: 2 | S121: c_mrzq_0010 | T121: _slide | U121: c_mrzq_0010_slide | X121: 断雨 | Y121: c_mrzq_0010_slide
P122: 213011 | Q122: 13 | R122: 1 | S122: c_yl_0014 | T122: _tap | U122: c_yl_0014_tap | X122: 黑泉利箭 | Y122: c_yl_0014_tap
P123: 213012 | Q123: 13 | R123: 1 | S123: c_yl_0014 | T123: _tap | U123: c_yl_0014_tap | X123: 黑泉利箭 | Y123: c_yl_0014_tap
P124: 213013 | Q124: 13 | R124: 1 | S124: c_yl_0014 | T124: _tap | U124: c_yl_0014_tap | X124: 黑泉利箭 | Y124: c_yl_0014_tap
P125: 213014 | Q125: 13 | R125: 1 | S125: c_yl_0014 | T125: _tap | U125: c_yl_0014_tap | X125: 黑泉利箭 | Y125: c_yl_0014_tap
P126: 213015 | Q126: 13 | R126: 1 | S126: c_yl_0014 | T126: _tap | U126: c_yl_0014_tap | X126: 黑泉利箭 | Y126: c_yl_0014_tap
P127: 213021 | Q127: 13 | R127: 2 | S127: c_yl_0014 | T127: _slide | U127: c_yl_0014_slide | X127: 芙蓉箭雨 | Y127: c_yl_0014_slide
P128: 213022 | Q128: 13 | R128: 2 | S128: c_yl_0014 | T128: _slide | U128: c_yl_0014_slide | X128: 芙蓉箭雨 | Y128: c_yl_0014_slide
P129: 213023 | Q129: 13 | R129: 2 | S129: c_yl_0014 | T129: _slide | U129: c_yl_0014_slide | X129: 芙蓉箭雨 | Y129: c_yl_0014_slide
P130: 213024 | Q130: 13 | R130: 2 | S130: c_yl_0014 | T130: _slide | U130: c_yl_0014_slide | X130: 芙蓉箭雨 | Y130: c_yl_0014_slide
P131: 213025 | Q131: =MID(P131,2,2) -> 13 | R131: =MID(P131,5,1) -> 2 | S131: =VLOOKUP(Q131,$C$2:$D$53,2,0) -> c_yl_0014 | T131: _slide | U131: =S131&T131 -> c_yl_0014_slide | X131: 芙蓉箭雨 | Y131: =IF(X131="","",U131) -> c_yl_0014_slide
P132: 214011 | Q132: 14 | R132: 1 | S132: c_gt_0001 | T132: _tap | U132: c_gt_0001_tap | X132: 墨意 | Y132: c_gt_0001_tap
P133: 214012 | Q133: 14 | R133: 1 | S133: c_gt_0001 | T133: _tap | U133: c_gt_0001_tap | X133: 墨意 | Y133: c_gt_0001_tap
P134: 214013 | Q134: 14 | R134: 1 | S134: c_gt_0001 | T134: _tap | U134: c_gt_0001_tap | X134: 墨意 | Y134: c_gt_0001_tap
P135: 214014 | Q135: 14 | R135: 1 | S135: c_gt_0001 | T135: _tap | U135: c_gt_0001_tap | X135: 墨意 | Y135: c_gt_0001_tap
P136: 214015 | Q136: 14 | R136: 1 | S136: c_gt_0001 | T136: _tap | U136: c_gt_0001_tap | X136: 墨意 | Y136: c_gt_0001_tap
P137: 214021 | Q137: 14 | R137: 2 | S137: c_gt_0001 | T137: _slide | U137: c_gt_0001_slide | X137: 画龙点睛 | Y137: c_gt_0001_slide
P138: 214022 | Q138: 14 | R138: 2 | S138: c_gt_0001 | T138: _slide | U138: c_gt_0001_slide | X138: 画龙点睛 | Y138: c_gt_0001_slide
P139: 214023 | Q139: 14 | R139: 2 | S139: c_gt_0001 | T139: _slide | U139: c_gt_0001_slide | X139: 画龙点睛 | Y139: c_gt_0001_slide
P140: 214024 | Q140: 14 | R140: 2 | S140: c_gt_0001 | T140: _slide | U140: c_gt_0001_slide | X140: 画龙点睛 | Y140: c_gt_0001_slide
P141: 214025 | Q141: 14 | R141: 2 | S141: c_gt_0001 | T141: =T131 -> _slide | U141: c_gt_0001_slide | X141: 画龙点睛 | Y141: c_gt_0001_slide
P142: 215011 | Q142: 15 | R142: 1 | S142: c_xy_0012 | T142: _tap | U142: c_xy_0012_tap | X142: 辉映 | Y142: c_xy_0012_tap
P143: 215012 | Q143: 15 | R143: 1 | S143: c_xy_0012 | T143: _tap | U143: c_xy_0012_tap | X143: 辉映 | Y143: c_xy_0012_tap
P144: 215013 | Q144: 15 | R144: 1 | S144: c_xy_0012 | T144: _tap | U144: c_xy_0012_tap | X144: 辉映 | Y144: c_xy_0012_tap
P145: 215014 | Q145: 15 | R145: 1 | S145: c_xy_0012 | T145: _tap | U145: c_xy_0012_tap | X145: 辉映 | Y145: c_xy_0012_tap
P146: 215015 | Q146: 15 | R146: 1 | S146: c_xy_0012 | T146: _tap | U146: c_xy_0012_tap | X146: 辉映 | Y146: c_xy_0012_tap
P147: 215021 | Q147: 15 | R147: 2 | S147: c_xy_0012 | T147: _slide | U147: c_xy_0012_slide | X147: 幻影预兆 | Y147: c_xy_0012_slide
P148: 215022 | Q148: 15 | R148: 2 | S148: c_xy_0012 | T148: _slide | U148: c_xy_0012_slide | X148: 幻影预兆 | Y148: c_xy_0012_slide
P149: 215023 | Q149: 15 | R149: 2 | S149: c_xy_0012 | T149: _slide | U149: c_xy_0012_slide | X149: 幻影预兆 | Y149: c_xy_0012_slide
P150: 215024 | Q150: 15 | R150: 2 | S150: c_xy_0012 | T150: _slide | U150: c_xy_0012_slide | X150: 幻影预兆 | Y150: c_xy_0012_slide
P151: 215025 | Q151: 15 | R151: 2 | S151: c_xy_0012 | T151: _slide | U151: c_xy_0012_slide | X151: 幻影预兆 | Y151: c_xy_0012_slide
P152: 216011 | Q152: 16 | R152: 1 | S152: c_cyh_0008 | T152: _tap | U152: c_cyh_0008_tap | X152: 无明火 | Y152: c_cyh_0008_tap
P153: 216012 | Q153: 16 | R153: 1 | S153: c_cyh_0008 | T153: _tap | U153: c_cyh_0008_tap | X153: 无明火 | Y153: c_cyh_0008_tap
P154: 216013 | Q154: 16 | R154: 1 | S154: c_cyh_0008 | T154: _tap | U154: c_cyh_0008_tap | X154: 无明火 | Y154: c_cyh_0008_tap
P155: 216014 | Q155: 16 | R155: 1 | S155: c_cyh_0008 | T155: _tap | U155: c_cyh_0008_tap | X155: 无明火 | Y155: c_cyh_0008_tap
P156: 216015 | Q156: 16 | R156: 1 | S156: c_cyh_0008 | T156: _tap | U156: c_cyh_0008_tap | X156: 无明火 | Y156: c_cyh_0008_tap
P157: 216021 | Q157: 16 | R157: 2 | S157: c_cyh_0008 | T157: _slide | U157: c_cyh_0008_slide | X157: 禁焰觉醒 | Y157: c_cyh_0008_slide
P158: 216022 | Q158: 16 | R158: 2 | S158: c_cyh_0008 | T158: _slide | U158: c_cyh_0008_slide | X158: 禁焰觉醒 | Y158: c_cyh_0008_slide
P159: 216023 | Q159: 16 | R159: 2 | S159: c_cyh_0008 | T159: _slide | U159: c_cyh_0008_slide | X159: 禁焰觉醒 | Y159: c_cyh_0008_slide
P160: 216024 | Q160: 16 | R160: 2 | S160: c_cyh_0008 | T160: _slide | U160: c_cyh_0008_slide | X160: 禁焰觉醒 | Y160: c_cyh_0008_slide
P161: 216025 | Q161: 16 | R161: 2 | S161: c_cyh_0008 | T161: _slide | U161: c_cyh_0008_slide | X161: 禁焰觉醒 | Y161: c_cyh_0008_slide
P162: 217011 | Q162: 17 | R162: 1 | S162: c_sxdw_0053 | T162: _tap | U162: c_sxdw_0053_tap | X162: 晦影 | Y162: c_sxdw_0053_tap
P163: 217012 | Q163: 17 | R163: 1 | S163: c_sxdw_0053 | T163: _tap | U163: c_sxdw_0053_tap | X163: 晦影 | Y163: c_sxdw_0053_tap
P164: 217013 | Q164: 17 | R164: 1 | S164: c_sxdw_0053 | T164: _tap | U164: c_sxdw_0053_tap | X164: 晦影 | Y164: c_sxdw_0053_tap
P165: 217014 | Q165: 17 | R165: 1 | S165: c_sxdw_0053 | T165: _tap | U165: c_sxdw_0053_tap | X165: 晦影 | Y165: c_sxdw_0053_tap
P166: 217015 | Q166: 17 | R166: 1 | S166: c_sxdw_0053 | T166: _tap | U166: c_sxdw_0053_tap | X166: 晦影 | Y166: c_sxdw_0053_tap
P167: 217021 | Q167: 17 | R167: 2 | S167: c_sxdw_0053 | T167: _slide | U167: c_sxdw_0053_slide | X167: 常世之暗 | Y167: c_sxdw_0053_slide
P168: 217022 | Q168: 17 | R168: 2 | S168: c_sxdw_0053 | T168: _slide | U168: c_sxdw_0053_slide | X168: 常世之暗 | Y168: c_sxdw_0053_slide
P169: 217023 | Q169: 17 | R169: 2 | S169: c_sxdw_0053 | T169: _slide | U169: c_sxdw_0053_slide | X169: 常世之暗 | Y169: c_sxdw_0053_slide
P170: 217024 | Q170: 17 | R170: 2 | S170: c_sxdw_0053 | T170: _slide | U170: c_sxdw_0053_slide | X170: 常世之暗 | Y170: c_sxdw_0053_slide
P171: 217025 | Q171: 17 | R171: 2 | S171: c_sxdw_0053 | T171: _slide | U171: c_sxdw_0053_slide | X171: 常世之暗 | Y171: c_sxdw_0053_slide
P172: 218011 | Q172: 18 | R172: 1 | S172: c_zh_0044 | T172: _tap | U172: c_zh_0044_tap | X172: 天照 | Y172: c_zh_0044_tap
P173: 218012 | Q173: 18 | R173: 1 | S173: c_zh_0044 | T173: _tap | U173: c_zh_0044_tap | X173: 天照 | Y173: c_zh_0044_tap
P174: 218013 | Q174: 18 | R174: 1 | S174: c_zh_0044 | T174: _tap | U174: c_zh_0044_tap | X174: 天照 | Y174: c_zh_0044_tap
P175: 218014 | Q175: 18 | R175: 1 | S175: c_zh_0044 | T175: _tap | U175: c_zh_0044_tap | X175: 天照 | Y175: c_zh_0044_tap
P176: 218015 | Q176: 18 | R176: 1 | S176: c_zh_0044 | T176: _tap | U176: c_zh_0044_tap | X176: 天照 | Y176: c_zh_0044_tap
P177: 218021 | Q177: 18 | R177: 2 | S177: c_zh_0044 | T177: _slide | U177: c_zh_0044_slide | X177: 剜心刺骨 | Y177: c_zh_0044_slide
P178: 218022 | Q178: 18 | R178: 2 | S178: c_zh_0044 | T178: _slide | U178: c_zh_0044_slide | X178: 剜心刺骨 | Y178: c_zh_0044_slide
P179: 218023 | Q179: 18 | R179: 2 | S179: c_zh_0044 | T179: _slide | U179: c_zh_0044_slide | X179: 剜心刺骨 | Y179: c_zh_0044_slide
P180: 218024 | Q180: 18 | R180: 2 | S180: c_zh_0044 | T180: _slide | U180: c_zh_0044_slide | X180: 剜心刺骨 | Y180: c_zh_0044_slide
P181: 218025 | Q181: 18 | R181: 2 | S181: c_zh_0044 | T181: _slide | U181: c_zh_0044_slide | X181: 剜心刺骨 | Y181: c_zh_0044_slide
P182: 219011 | Q182: 19 | R182: 1 | S182: c_kq_0018 | T182: _tap | U182: c_kq_0018_tap | X182: 辰变 | Y182: c_kq_0018_tap
P183: 219012 | Q183: 19 | R183: 1 | S183: c_kq_0018 | T183: _tap | U183: c_kq_0018_tap | X183: 辰变 | Y183: c_kq_0018_tap
P184: 219013 | Q184: 19 | R184: 1 | S184: c_kq_0018 | T184: _tap | U184: c_kq_0018_tap | X184: 辰变 | Y184: c_kq_0018_tap
P185: 219014 | Q185: 19 | R185: 1 | S185: c_kq_0018 | T185: _tap | U185: c_kq_0018_tap | X185: 辰变 | Y185: c_kq_0018_tap
P186: 219015 | Q186: 19 | R186: 1 | S186: c_kq_0018 | T186: _tap | U186: c_kq_0018_tap | X186: 辰变 | Y186: c_kq_0018_tap
P187: 219021 | Q187: 19 | R187: 2 | S187: c_kq_0018 | T187: _slide | U187: c_kq_0018_slide | X187: 凭虚御风 | Y187: c_kq_0018_slide
P188: 219022 | Q188: 19 | R188: 2 | S188: c_kq_0018 | T188: _slide | U188: c_kq_0018_slide | X188: 凭虚御风 | Y188: c_kq_0018_slide
P189: 219023 | Q189: 19 | R189: 2 | S189: c_kq_0018 | T189: _slide | U189: c_kq_0018_slide | X189: 凭虚御风 | Y189: c_kq_0018_slide
P190: 219024 | Q190: 19 | R190: 2 | S190: c_kq_0018 | T190: _slide | U190: c_kq_0018_slide | X190: 凭虚御风 | Y190: c_kq_0018_slide
P191: 219025 | Q191: 19 | R191: 2 | S191: c_kq_0018 | T191: _slide | U191: c_kq_0018_slide | X191: 凭虚御风 | Y191: c_kq_0018_slide
P192: 220011 | Q192: 20 | R192: 1 | S192: c_ywy_0040 | T192: _tap | U192: c_ywy_0040_tap | X192: 天回 | Y192: c_ywy_0040_tap
P193: 220012 | Q193: 20 | R193: 1 | S193: c_ywy_0040 | T193: _tap | U193: c_ywy_0040_tap | X193: 天回 | Y193: c_ywy_0040_tap
P194: 220013 | Q194: 20 | R194: 1 | S194: c_ywy_0040 | T194: _tap | U194: c_ywy_0040_tap | X194: 天回 | Y194: c_ywy_0040_tap
P195: 220014 | Q195: =MID(P195,2,2) -> 20 | R195: =MID(P195,5,1) -> 1 | S195: =VLOOKUP(Q195,$C$2:$D$53,2,0) -> c_ywy_0040 | T195: _tap | U195: =S195&T195 -> c_ywy_0040_tap | X195: 天回 | Y195: =IF(X195="","",U195) -> c_ywy_0040_tap
P196: 220015 | Q196: 20 | R196: 1 | S196: c_ywy_0040 | T196: _tap | U196: c_ywy_0040_tap | X196: 天回 | Y196: c_ywy_0040_tap
P197: 220021 | Q197: 20 | R197: 2 | S197: c_ywy_0040 | T197: _slide | U197: c_ywy_0040_slide | X197: 白炎离火 | Y197: c_ywy_0040_slide
P198: 220022 | Q198: 20 | R198: 2 | S198: c_ywy_0040 | T198: _slide | U198: c_ywy_0040_slide | X198: 白炎离火 | Y198: c_ywy_0040_slide
P199: 220023 | Q199: 20 | R199: 2 | S199: c_ywy_0040 | T199: _slide | U199: c_ywy_0040_slide | X199: 白炎离火 | Y199: c_ywy_0040_slide
P200: 220024 | Q200: 20 | R200: 2 | S200: c_ywy_0040 | T200: _slide | U200: c_ywy_0040_slide | X200: 白炎离火 | Y200: c_ywy_0040_slide
... 321 more rows

Sheet Sheet1
A1: 1 | B1: MP_ExploreMap_sj_0010
A2: 2 | B2: MP_ExploreMap_sj_0011
A3: 3 | B3: ME_Explorer_0004
A4: 4 | B4: ME_Explorer_0001
A5: 5 | B5: ME_Explorer_0007
A6: 6 | B6: ME_Explorer_0002
A7: 7 | B7: ME_Explorer_0005
A8: 8
A9: 9
A10: 10 | B10: ME_Explorer_0002
A11: 101 | B11: s_shangcheng_hunjing_01
A12: 102 | B12: s_shangcheng_hunjing_02
A13: 103 | B13: s_shangcheng_hunjing_03
A14: 104 | B14: s_shangcheng_hunjing_04
A15: 105 | B15: s_shangcheng_hunjing_05
A16: 106 | B16: s_shangcheng_hunjing_06
A17: 201 | B17: r_playerrumble_yiyao_01
A18: 202 | B18: r_playerrumble_yiyao_02
A19: 203 | B19: r_playerrumble_yiyao_03
A20: 204 | B20: r_playerrumble_yiyao_04
A21: 205 | B21: r_playerrumble_yiyao_05
A22: 206 | B22: r_playerrumble_yiyao_06
A23: 207 | B23: r_playerrumble_yiyao_07
A24: 208 | B24: r_playerrumble_yiyao_08
A25: 209 | B25: r_playerrumble_yiyao_09
A26: 210 | B26: r_playerrumble_yiyao_10
A27: 301 | B27: gh_tt_1
A28: 302 | B28: gh_tt_2
A29: 303 | B29: gh_tt_3
A30: 304 | B30: gh_tt_4
A31: 305 | B31: gh_tt_5
A32: 306 | B32: gh_tt_6
A33: 307 | B33: gh_tt_7
A34: 308 | B34: gh_tt_8
A35: 309 | B35: gh_tt_9
A36: 501 | B36: s_sbtj_renwu
A37: 502 | B37: s_sbtj_biaoti
A38: 503 | B38: t_tsec_fengli
A39: 504 | B39: t_tsec_huoshu
A40: 505 | B40: t_tsec_modao
A41: 506 | B41: t_tsec_sunlong
A42: 507 | B42: t_tsec_biaoti
A43: 1001 | B43: c_syf_0016_t3
A44: 1002 | B44: c_ch_0015_t3
A45: 1003 | B45: c_xhht_0017_t3
A46: 1004 | B46: c_yr_0007_t3
A47: 1005 | B47: c_dmk_0043_t3
A48: 1006 | B48: c_qlq_0006_t3
A49: 1007 | B49: c_jz_0002_t3
A50: 1008 | B50: c_bmf_0004_t3
A51: 1009 | B51: c_qf_0046_t3
A52: 1010 | B52: c_yqj_0042_t3
A53: 1011 | B53: c_yy_0041_t3
A54: 1012 | B54: c_mrzq_0010_t3
A55: 1013 | B55: c_yl_0014_t3
A56: 1014 | B56: c_gt_0001_t3
A57: 1015 | B57: c_xy_0012_t3
A58: 1016 | B58: c_cyh_0008_t3
A59: 1017 | B59: c_sxdw_0053_t3
A60: 1018 | B60: c_zh_0044_t3
A61: 1019 | B61: c_kq_0018_t3
A62: 1020 | B62: c_ywy_0040_t3
A63: 1021 | B63: c_mlmn_0054_t3
A64: 1022 | B64: c_ywg_0045_t3
A65: 1023 | B65: c_hyt_0032_t3
A66: 1024 | B66: c_xjr_0003_t3
A67: 1025 | B67: c_tx_0011_t3
A68: 1026 | B68: c_sq_0019_t3
A69: 1027 | B69: c_nye_0020_t3
A70: 1028 | B70: c_zc_0021_t3
A71: 1029 | B71: c_lhmn_0056_t3
A72: 1030 | B72: c_yy_0023_t3
A73: 1031 | B73: c_jpw_0024_t3
A74: 1032 | B74: c_ly_0025_t3
A75: 1033 | B75: c_xy_0026_t3
A76: 1034 | B76: c_fm_0027_t3
A77: 1035 | B77: c_skr_0028_t3
A78: 1036 | B78: c_jy_0029_t3
A79: 1037 | B79: c_xl_0030_t3
A80: 1038 | B80: c_cs_0031_t3
A81: 1039 | B81: c_qr_0065_t3
A82: 1040 | B82: c_rj_0033_t3
A83: 1041 | B83: c_mc_0034_t3
A84: 1042 | B84: c_yl_0035_t3
A85: 1043 | B85: c_wl_0036_t3
A86: 1044 | B86: c_fjzd_0055_t3
A87: 1045 | B87: c_sk_0038_t3
A88: 1046 | B88: c_ly_0039_t3
A89: 1047 | B89: c_cff_0047_t3
A90: 1048 | B90: c_yff_0048_t3
A91: 1049 | B91: c_cff_0049_t3
A92: 1050 | B92: c_jff_0050_t3
A93: 1051 | B93: c_ym_0051_t3
A94: 1052 | B94: c_ym_0052_t3
A95: 1053 | B95: c_ax_0067_t3
A96: 1054 | B96: c_bm_0068_t3
A97: 1055 | B97: c_ly_0070_t3
A98: 1056 | B98: c_yqe_0071_t3
A99: 1057 | B99: c_yxz_0057_t3
A100: 1058 | B100: c_ne_0058_t3
A101: 1059 | B101: c_fzy_0061_t3
A102: 1060 | B102: c_y_0013_t3
A103: 1061 | B103: c_zs_0080_t3
A104: 1062 | B104: c_ywe_0078_t3
A105: 1063 | B105: c_y_0013_t3
A106: 1064 | B106: c_zs_0080_t3
A107: 1065 | B107: c_ywe_0078_t3
A108: 1066 | B108: c_y_0013_t3
A109: 1067 | B109: c_zs_0080_t3
A110: 1068 | B110: c_ywe_0078_t3
A111: 1069 | B111: c_y_0013_t3
A112: 1070 | B112: c_zs_0080_t3
A113: 1071 | B113: c_ywe_0078_t3
A114: 1072 | B114: c_y_0013_t3
A115: 1073 | B115: c_zs_0080_t3
A116: 1074 | B116: c_ywe_0078_t3
A117: 1075 | B117: c_y_0013_t3
A118: 1076 | B118: c_zs_0080_t3
A119: 1077 | B119: c_ywe_0078_t3
A120: 1078 | B120: c_y_0013_t3
A121: 1079 | B121: c_zs_0080_t3
A122: 1080 | B122: c_ywe_0078_t3
A123: 1081 | B123: c_y_0013_t3
A124: 1082 | B124: c_zs_0080_t3
A125: 1083 | B125: c_ywe_0078_t3
A126: 1084 | B126: c_y_0013_t3
A127: 1085 | B127: c_zs_0080_t3
A128: 1086 | B128: c_ywe_0078_t3
A129: 1087 | B129: c_y_0013_t3
A130: 1088 | B130: c_zs_0080_t3
A131: 1089 | B131: c_ywe_0078_t3
A132: 1090 | B132: c_y_0013_t3
A133: 1091 | B133: c_zs_0080_t3
A134: 1092 | B134: c_ywe_0078_t3
A135: 1093 | B135: c_y_0013_t3
A136: 1094 | B136: c_zs_0080_t3
A137: 1095 | B137: c_ywe_0078_t3
A138: 1096 | B138: c_y_0013_t3
A139: 1097 | B139: c_zs_0080_t3
A140: 1098 | B140: c_ywe_0078_t3
A141: 1099 | B141: c_y_0013_t3
A142: 1100 | B142: c_zs_0080_t3
A143: 1501 | B143: r_class_mifa
A144: 1502 | B144: r_class_shenghua
A145: 1503 | B145: r_class_tianfa
A146: 1504 | B146: r_class_wuwei
A147: 1505 | B147: r_class_xuance
A148: 1510 | B148: r_CurrencyEquip_green
A149: 1511 | B149: r_CurrencyEquip_blue
A150: 1512 | B150: r_CurrencyEquip_purple
A151: 1513 | B151: r_CurrencyEquip_orange
A152: 1520 | B152: r_RareItem_QuestNew_0001
A153: 1521 | B153: r_RareItem_QuestNew_0002
A154: 1522 | B154: r_RareItem_QuestNew_0003
A155: 1523 | B155: r_RareItem_QuestNew_0004
A156: 1524 | B156: r_RareItem_QuestNew_0005
A157: 1525 | B157: r_RareItem_QuestNew_0006
A158: 1526 | B158: r_RareItem_QuestNew_0007
A159: 1527 | B159: r_RareItem_QuestNew_0008
A160: 1528 | B160: r_RareItem_QuestNew_0009
A161: 1529 | B161: r_RareItem_QuestNew_0010
A162: 1530 | B162: r_RareItem_QuestNew_0011
A163: 1531 | B163: r_RareItem_QuestNew_0011
A164: 1532 | B164: r_RareItem_QuestNew_0003
A165: 1533 | B165: r_RareItem_QuestNew_0001
A166: 1534 | B166: r_RareItem_QuestNew_0002
A167: 1535 | B167: r_RareItem_QuestNew_0004
A168: 1536 | B168: r_RareItem_MapReward_0004
A169: 1537 | B169: r_RareItem_MapReward_0004
A170: 1538 | B170: r_RareItem_MapReward_0006
A171: 1539 | B171: r_RareItem_Quest_0012
A172: 1540 | B172: r_RareItem_Quest_0014
A173: 1541 | B173: r_RareItem_QuestNew_0001
A174: 1542 | B174: r_RareItem_QuestNew_0001
A175: 1543 | B175: r_RareItem_QuestNew_0001
A176: 1544 | B176: r_RareItem_QuestNew_0001
A177: 1545 | B177: r_RareItem_Quest_0024
A178: 1546 | B178: r_RareItem_MapReward_0001
A179: 1547 | B179: r_RareItem_Quest_0009
A180: 1548 | B180: r_RareItem_MapReward_0004
A181: 1549 | B181: r_RareItem_Quest_0013
A182: 1550 | B182: r_RareItem_QuestNew_0001
A183: 1551 | B183: r_RareMaterial_Talent_0003
A184: 1801 | B184: r_zjm_icon-jielin002
A185: 1802 | B185: r_zjm_yinyaoju
A186: 1803 | B186: r_zjm_icon-chengyuan002
A187: 1804 | B187: r_zjm_icon-cangku002
A188: 1805 | B188: r_zjm_icon-zhujue002
A189: 1806 | B189: r_zjm_tianfushu
A190: 1807 | B190: r_zjm_haoyou
A191: 1808 | B191: r_zjm_richangrenwu
A192: 1809 | B192: r_zjm_huodongicon-yunmengqifu
A193: 1810 | B193: r_zjm_huodongicon-jielinmibao
A194: 1811 | B194: r_zjm_huodongicon-kaifuli
A195: 1812 | B195: r_zjm_fuli
A196: 1813 | B196: r_zjm_xianshihuodong
A197: 1814 | B197: r_zjm_muyindian
A198: 1815 | B198: r_zjm_liulingge
A199: 1816 | B199: r_zjm_juyiting
A200: 1817 | B200: r_zjm_mijing
... 222 more rows

Sheet Sheet2
B1: c_hyt_0032_t3
B2: live2d_c_hyt_0032
B3: c_hyt_0032_t1

Sheet Sheet3
A1: i_s_2006830_xne
A2: i_s_ysz_21
A3: i_s_ysz_14
A4: i_s_ysz_12
A5: i_s_ysz_1
A6: i_s_tybd_13
A7: i_s_tybd_08
A8: i_s_tybd_07
A9: i_s_tybd_06
A10: i_s_tybd_05
A11: i_s_tybd_03
A12: i_s_9810_hyjl
A13: i_s_9050_wy
A14: i_s_7540_nxy
A15: i_s_7530_nxy
A16: i_s_7520_nxy
A17: i_s_7510_nxy
A18: i_s_7340_nxt
A19: i_s_7220_ly
A20: i_s_7210_ly
A21: i_s_6510_nxf
A22: i_s_6330_lq
A23: i_s_6330_lq
A24: i_s_6230_xy
A25: i_s_6220_xy
A26: i_s_5940_sy
A27: i_s_5920_sy
A28: i_s_5830_sy
A29: i_s_5820_sy
A30: i_s_5650_sks
A31: i_s_5640_sks
A32: i_s_5620_sks
A33: i_s_5610_sks
A34: i_s_5520_lz
A35: i_s_5510_lz
A36: i_s_5240_xx
A37: i_s_5230_xx
A38: i_s_5220_xx
A39: i_s_5120_yz
A40: i_s_48500_sf
A41: i_s_4840_sf
A42: i_s_4820_sf
A43: i_s_4730_cn
A44: i_s_4540_yh
A45: i_s_4304_jzls
A46: i_s_4303_jzls
A47: i_s_4301_jzls
A48: i_s_4130_nl
A49: i_s_4120_nl
A50: i_s_4050_yz
A51: i_s_4020_yz
A52: i_s_3930_xne
A53: i_s_3850_ym
A54: i_s_3840_ym
A55: i_s_3820_ym
A56: i_s_3810_ym
A57: i_s_3730_yl
A58: i_s_3720_yl
A59: i_s_3710_yl
A60: i_s_3620_gs
A61: i_s_3550_gmls
A62: i_s_3520_gmls
A63: i_s_3440_yhzs
A64: i_s_3420_yhzs
A65: i_s_3410_yhzs
A66: i_s_3330_hdls
A67: i_s_3320_hdls
A68: i_s_3230_hals
A69: i_s_3210_hals
A70: i_s_3140_tzls
A71: i_s_3130_tzls
A72: i_s_3050_gy
A73: i_s_3040_gy
A74: i_s_3030_gy
A75: i_s_3020_gy
A76: i_s_3010_gy
A77: i_s_2840_yx
A78: i_s_2830_yx
A79: i_s_2740_swls
A80: i_s_2720_swls
A81: i_s_2710_swls
A82: i_s_2640_yysz
A83: i_s_2620_yysz
A84: i_s_2550_yy
A85: i_s_2530_yy
A86: i_s_2520_yy
A87: i_s_2510_yy
A88: i_s_2350_m
A89: i_s_2150_ny
A90: i_s_2120_ny
A91: i_s_2110_ny
A92: i_s_2040_lzls
A93: i_s_2030_lzls
A94: i_s_2020_lzls
A95: i_s_2010_lzls
A96: i_s_2006810_xne
A97: i_s_2005650_gs
A98: i_s_2005630_gs
A99: i_s_2005620_gs
A100: i_s_2005610_gs
A101: i_s_2005550_sje
A102: i_s_2005540_sje
A103: i_s_2005520_sje
A104: i_s_2005510_sje
A105: i_s_2002730_zhs
A106: i_s_2002130_yl
A107: i_s_2002030_wy
A108: i_s_2001830_dz
A109: i_s_2001810_dz
A110: i_s_2001740_yls
A111: i_s_2001530_jzwb
A112: i_s_2001520_jzwb
A113: i_s_2001020_gb
A114: i_s_2001010_gb
A115: i_s_2000950_lyy
A116: i_s_2000940_lyy
A117: i_s_2000850_hy
A118: i_s_2000820_hy
A119: i_s_2000610_bw
A120: i_s_2000520_hw
A121: i_s_2000510_hw
A122: i_s_2000450_gzn
A123: i_s_2000350_xy
A124: i_s_2000320_xy
A125: i_s_1920_dz
A126: i_s_1910_dz
A127: i_s_1840_yx
A128: i_s_1830_yx
A129: i_s_1820_yx
A130: i_s_1810_yx
A131: i_s_1730_lp
A132: i_s_1710_lp
A133: i_s_1650_dz
A134: i_s_1630_dz
A135: i_s_1550_yzy
A136: i_s_1520_yzy
A137: i_s_1430_hylr
A138: i_s_1410_hylr
A139: i_s_1340_sx
A140: i_s_1330_sx
A141: i_s_1320_sx
A142: i_s_1310_sx
A143: i_s_1220_ls
A144: i_s_1210_ls
A145: i_s_1150_dj
A146: i_s_1140_dj
A147: i_s_1130_dj
A148: i_s_1120_dj
A149: i_s_1110_dj
A150: i_s_1000310_bxjl
